[Event "26th Hit Open-A 2022"]
[Site "Nova Gorica"]
[Date "2022.09.20"]
[Round "7.19"]
[White "Stevanic, David"]
[Black "Verbin, Valentina"]
[Result "1-0"]
[ECO "B22"]
[WhiteElo "2261"]
[BlackElo "2049"]
[Annotator "TA"]
[PlyCount "139"]
[EventDate "2022.09.16"]
[EventType "swiss"]
[EventCountry "SLO"]
[SourceTitle "playchess.com"]
[Source "ChessBase"]
[SourceQuality "1"]
[TimeControl "5400+30"]

{[%evp 9,138,7,14,15,11,-13,17,2,0,0,14,8,9,19,34,27,27,21,17,-12,0,-13,-13,-13,-8,-2,-5,0,-11,-12,-8,-10,-10,-6,0,-5,0,-5,-4,-6,0,0,0,-5,0,0,0,-6,0,0,5,0,31,0,38,0,3,4,65,0,0,0,17,0,0,0,0,0,0,0,0,0,0,0,0,0,0,0,0,0,8,8,8,8,53,58,88,0,121,105,204,206,193,28,34,59,82,87,107,107,497,37,424,395,374,499,483,464,415,71,72,74,74,74,74,78,725,708,593,247,217,65,372,356,256,67,29977,29978,29998,29999,29999]} 1. e4 {[%emt 0:00:04][%cal Be2e4,Be4e5][%mdl 32]} c5 {[%emt 0:00:25]} 2. c3 {[%emt 0:00:04]} Nf6 {[%emt 0:00:46]} 3. e5 {[%emt 0:00:08]} Nd5 {[%emt 0:00:12]} 4. Bc4 {[%emt 0:00:11]} Nb6 {[%emt 0:00:34]} 5. Bb3 {[%emt 0:00:06]} d6 {[%emt 0:01:00]} 6. exd6 {[%emt 0:00:27] B22: Sicilian: 2 c3.} Qxd6 {[%emt 0:00:14]} 7. Na3 {[%emt 0:01:48] seems to push 7.Nf3 aside.} a6 {[%emt 0:02:58]} 8. Ne2 {[%emt 0:04:59] The position is equal.} Nc6 {[%emt 0:15:16]} 9. O-O {[%emt 0:02:14] [#]} Be6 $146 {[%emt 0:11:22]} ({Predecessor:} 9... e6 10. d4 cxd4 11. cxd4 Be7 12. Bf4 Qd8 13. Rc1 O-O 14. Nc4 Nxc4 15. Bxc4 Nb4 {1-0 (47) Shevchenko,K (2592)-Albornoz Cabrera,C (2573) Chess.com INT 2020}) 10. d4 {[%emt 0:07:03]} cxd4 {[%emt 0:03:12]} 11. Bxe6 {[%emt 0:00:25]} Qxe6 {[%emt 0:01:00]} 12. Nxd4 {[%emt 0:00:40]} Nxd4 {[%emt 0:12:45]} 13. Qxd4 {[%emt 0:02:40]} Rd8 {[%emt 0:00:20]} 14. Qb4 {[%emt 0:02:43]} Qc6 {[%emt 0:01:48]} 15. Nc2 {[%emt 0:05:37]} e6 {[%emt 0:15:11]} 16. Qg4 {[%emt 0:01:57]} h5 {[%emt 0:00:49]} 17. Qe2 {[%emt 0:07:32]} Qc4 {[%emt 0:05:32]} (17... Be7 {with more complications.} 18. Be3 Qe4 19. Rae1 Nd5) 18. Qxc4 {[%emt 0:02:06]} Nxc4 {[%emt 0:00:05]} 19. b3 {[%emt 0:00:28]} Ne5 {[%emt 0:01:48]} 20. Be3 {[%emt 0:01:34]} Bd6 {[%emt 0:04:08]} 21. h3 {[%emt 0:03:10]} Ke7 {[%emt 0:03:30]} 22. c4 {[%emt 0:00:42]} Nc6 {[%emt 0:02:02]} 23. Bb6 {[%emt 0:02:40] [#] Threatens to win with c5.} Rd7 {[%emt 0:01:52]} 24. Rfd1 {[%emt 0:02:09]} Bc7 {[%emt 0:04:39]} 25. Bc5+ {[%emt 0:01:46]} Bd6 {[%emt 0:05:58]} 26. Bb6 {[%emt 0:07:34]} Bc7 {[%emt 0:00:14]} 27. Rxd7+ {[%emt 0:00:15]} Kxd7 {[%emt 0:00:03]} 28. Be3 {[%emt 0:00:25]} Be5 {[%emt 0:01:10]} 29. Rb1 {[%emt 0:02:01]} a5 {[%emt 0:02:29]} 30. f4 {[%emt 0:05:43]} Bc3 {[%emt 0:00:03]} 31. Bb6 {[%emt 0:00:46]} Ra8 {[%emt 0:01:33]} 32. a3 {[%emt 0:01:40] Inhibits Nb4.} Ra6 {[%emt 0:01:25]} 33. Rd1+ {[%emt 0:00:11]} Kc8 {[%emt 0:01:09]} (33... Ke8 $11 34. Bc7 Bf6) 34. Bc5 {[%emt 0:04:08]} (34. c5 $1 $14) 34... b6 $11 {[%emt 0:00:32]} 35. Be3 {[%emt 0:00:43]} Kc7 {[%emt 0:00:22]} 36. g4 {[%emt 0:04:56]} hxg4 {[%emt 0:00:06]} 37. hxg4 {[%emt 0:00:03]} Ra8 {[%emt 0:00:31]} 38. Kf2 {[%emt 0:02:17]} Rh8 {[%emt 0:00:40] aiming for ...Rh2+.} 39. Kg3 {[%emt 0:00:23] Inhibits Rh2.} Ra8 {[%emt 0:01:16]} 40. f5 {[%emt 0:03:37]} exf5 {[%emt 0:00:25]} 41. gxf5 {[%emt 0:03:19]} Be5+ {[%emt 0:00:40]} 42. Kf3 {[%emt 0:04:31]} Rh8 {[%emt 0:00:29]} 43. Rd5 {[%emt 0:00:03]} Rh2 {[%emt 0:00:48]} 44. Ne1 {[%emt 0:00:11]} Ra2 {[%emt 0:00:21]} 45. Nd3 {[%emt 0:01:26]} f6 {[%emt 0:00:16]} 46. a4 {[%emt 0:00:48]} Ra3 {[%emt 0:00:21]} (46... Rh2 {is more complex.} 47. Nf4 Ne7 48. Rb5 Nxf5 49. Bxb6+ Kc6) 47. Rb5 {[%emt 0:01:16] Black must now prevent Ke4.} Bd4 {[%emt 0:00:03]} 48. Nf4 {[%emt 0:00:29]} (48. Bf4+ $16 Kc8 49. Ke4) 48... Bxe3 {[%emt 0:01:07]} (48... Ne5+ $11 {keeps the balance.} 49. Ke4 Bxe3 50. Kxe3 Kc6) 49. Nd5+ {[%emt 0:02:11]} Kd8 {[%emt 0:00:47]} (49... Kd7 $16 50. Kxe3 Ra1) 50. Kxe3 $18 {[%emt 0:00:14][%mdl 4096] Endgame KRN-KRN} Nb4 {[%emt 0:00:15]} 51. Nxb6 $2 {[%emt 0:06:19]} ({Don't play} 51. Nxb4 $6 axb4 52. Rxb4 Kc7 $16) (51. Kd4 $18) 51... Rxb3+ $11 {[%emt 0:00:03]} 52. Ke4 {[%emt 0:00:35]} Kc7 {[%emt 0:00:38]} 53. Nd5+ {[%emt 0:01:56]} Kd6 {[%emt 0:00:44]} 54. Rxa5 {[%emt 0:00:53] White is more active.} Nc6 $2 {[%emt 0:00:19][%mdl 8192]} (54... Nxd5 $16 {is tougher.} 55. Rxd5+ Kc6) 55. c5+ {[%emt 0:01:39]} Kd7 {[%emt 0:00:05]} 56. Rb5 {[%emt 0:01:08]} Ra3 {[%emt 0:01:21]} 57. Rb7+ {[%emt 0:00:05]} Kd8 {[%emt 0:00:03]} 58. Nb6 {[%emt 0:00:28]} Ne7 {[%emt 0:00:46]} 59. Rb8+ $2 {[%emt 0:01:51]} (59. Ra7 $18) 59... Kc7 $16 {[%emt 0:00:04]} 60. Re8 {[%emt 0:00:10]} Nc6 {[%emt 0:00:39]} 61. Rg8 {[%emt 0:00:28]} Rg3 {[%emt 0:00:12]} 62. Nd5+ {[%emt 0:00:24]} Kd7 $2 {[%emt 0:01:27][%mdl 8192]} (62... Kb7 $16) 63. Nxf6+ $1 $18 {[%emt 0:00:06]} Ke7 {[%emt 0:00:09]} 64. Nh5 {[%emt 0:02:08]} (64. Kd5 $142) 64... Rg4+ {[%emt 0:00:20]} 65. Ke3 $2 {[%emt 0:00:08]} (65. Nf4 $18) 65... Rxa4 $2 {[%emt 0:00:34][%mdl 8192]} ({Black should try} 65... Kf7 $14 66. Ra8 Rc4) 66. Rxg7+ {[%emt 0:00:04]} Kf8 {[%emt 0:00:09] [#]} 67. f6 $2 {[%emt 0:01:42]} ({Only move:} 67. Rd7 $1 $18) 67... Rc4 $2 {[%emt 0:01:00][%mdl 8192]} (67... Nd4 $14) 68. Nf4 {[%emt 0:00:30] White mates.} Nd8 {[%emt 0:00:09]} 69. Ng6+ {[%emt 0:00:12]} Ke8 {[%emt 0:00:08]} 70. Re7# {[%emt 0:00:04] Weighted Error Value: White=0.34/Black=0.27 (precise)} 1-0

[Event "26th Hit Open-A 2022"]
[Site "Nova Gorica"]
[Date "2022.09.20"]
[Round "7.20"]
[White "Hercog, Nusa"]
[Black "Chkhaidze, Nikoloz"]
[Result "0-1"]
[ECO "E81"]
[WhiteElo "2019"]
[BlackElo "2239"]
[Annotator "TA"]
[PlyCount "66"]
[EventDate "2022.09.16"]
[EventType "swiss"]
[EventCountry "SLO"]
[SourceTitle "playchess.com"]
[Source "ChessBase"]
[SourceQuality "1"]
[TimeControl "5400+30"]

{[%evp 20,65,12,0,0,10,-2,-4,13,0,0,0,0,38,43,9,28,-226,-210,-233,-227,-231,-225,-211,-184,-222,-212,-240,-224,-224,-216,-612,-487,-487,-480,-480,-489,-460,-446,-29990,-29991,-29991,-29991,-29990,-29991,-29995,-29996,-29999]} 1. d4 {[%emt 0:00:02]} Nf6 {[%emt 0:00:01]} 2. c4 {[%emt 0:00:08]} g6 {[%emt 0:00:01]} 3. f3 {[%emt 0:00:24]} Bg7 {[%emt 0:00:49]} 4. e4 {[%emt 0:00:13]} d6 {[%emt 0:00:23]} 5. Nc3 {[%emt 0:00:15]} O-O {[%emt 0:00:10]} 6. Be3 {[%emt 0:00:00]} c5 {[%emt 0:00:04]} 7. Nge2 {[%emt 0:01:21]} Nc6 {[%emt 0:00:20]} 8. d5 {[%emt 0:04:48]} Ne5 {[%emt 0:04:51]} 9. Ng3 {[%emt 0:00:25]} e6 {[%emt 0:03:40]} 10. Qd2 {[%emt 0:03:39]} exd5 {[%emt 0:00:18]} 11. cxd5 {[%emt 0:00:29]} h5 {[%emt 0:02:49][%cal Bh7h5,Bh5h4,Bh4h3][%mdl 32] E81: King's Indian: Sämisch: 6th move deviations (including 6 Be3 c6).} 12. Be2 {[%emt 0:01:36]} h4 {[%emt 0:04:21]} 13. Nf1 {[%emt 0:00:06]} h3 {[%emt 0:02:10] The position is equal.} 14. g4 {[%emt 0:07:33]} b5 {[%emt 0:17:19][%cal Re5g4]} 15. Ng3 {[%emt 0:06:25]} b4 {[%emt 0:04:54]} 16. Nd1 {[%emt 0:02:02] [#]} Re8 $146 {[%emt 0:04:12]} ({Predecessor:} 16... Ba6 17. O-O Bxe2 18. Qxe2 Re8 19. Nf2 {1-0 (19) Cervantes Landeiro,T (2311)-Segarra,R (2321) Chess.com INT 2020}) 17. Nf2 {[%emt 0:05:34]} c4 {[%emt 0:09:50][%cal Bc5c4,Bc4c3,Bc3b2][%mdl 32]} (17... Ba6 {keeps more tension.} 18. g5 Nh7 19. f4 Nc4) 18. Qxb4 $2 {[%emt 0:13:38][%mdl 8192] [#] This move loses the game for White.} (18. Nxh3 c3 19. bxc3 bxc3 $15) (18. O-O $11 {and White stays safe.}) 18... Nxd5 $1 $19 {[%emt 0:13:31][%mdl 512]} 19. exd5 {[%emt 0:03:06] [#] And now Nge4 would win.} Nxf3+ $1 {[%emt 0:00:09][%mdl 576] Decoy} 20. Bxf3 {[%emt 0:01:45]} Rxe3+ {[%emt 0:00:04]} 21. Be2 {[%emt 0:02:24]} c3 {[%emt 0:00:04]} 22. O-O {[%emt 0:04:57]} cxb2 {[%emt 0:02:07]} 23. Rab1 {[%emt 0:00:49]} Qe7 {[%emt 0:11:03][%cal Oe3g3] ...Rxg3+! is the strong threat.} 24. Bd3 {[%emt 0:08:10] [#]} ({Much weaker is} 24. Rxb2 Bc3 25. Qb5 Qe5 $19) 24... Qe5 {[%emt 0:06:08] Prevents Qf4. ( -> ...Rxg3+)} 25. Ngh1 {[%emt 0:10:50] [#]} (25. Nge4 Qf4 26. Rxb2 (26. Qxd6 $2 Be5 $19)) 25... Rxd3 $1 {[%emt 0:07:15][%mdl 576] Decoy} 26. Nxd3 {[%emt 0:02:59]} Qxd5 {[%emt 0:00:10][%csl Gh3][%cal Rd5g2]} 27. Nf4 {[%emt 0:00:28] [#] Prevents Qg2+.} Bd4+ $1 {[%emt 0:00:12]} ({Not} 27... Qd4+ 28. Qxd4 Bxd4+ 29. Nf2 $11) 28. Nf2 {[%emt 0:00:23]} Qe4 {[%emt 0:00:34]} 29. Qe1 {[%emt 0:16:26]} (29. Qxb2 $19 Qxf4 30. Qb3 Qxg4+ 31. Qg3) 29... Qxf4 {[%emt 0:00:33] Black mates.} 30. Qe8+ {[%emt 0:00:16]} Kg7 {[%emt 0:00:03]} 31. Qc6 {[%emt 0:00:39] [#]} Bxg4 $1 {[%emt 0:03:30]} 32. Qxa8 {[%emt 0:02:53]} (32. Qa4 Bxf2+) 32... Bf3 {[%emt 0:00:03][%csl Gf3][%cal Rf4g4] A strong pair of Bishops.} 33. Qb8 {[%emt 0:00:11]} Qg4# {[%emt 0:00:11] Weighted Error Value: White=0.77/Black=0.13 (very precise)} 0-1

[Event "26th Hit Open-A 2022"]
[Site "Nova Gorica"]
[Date "2022.09.20"]
[Round "7.21"]
[White "Beliavsky, Alexander G"]
[Black "Labrovic, Jakov"]
[Result "1-0"]
[ECO "E15"]
[WhiteElo "2505"]
[BlackElo "1882"]
[Annotator "TA"]
[PlyCount "51"]
[EventDate "2022.09.16"]
[EventType "swiss"]
[EventCountry "SLO"]
[SourceTitle "playchess.com"]
[Source "ChessBase"]
[SourceQuality "1"]
[TimeControl "5400+30"]

{[%evp 9,51,18,27,17,32,5,33,35,37,48,70,31,80,67,72,62,66,70,70,48,106,131,131,141,117,126,140,92,177,185,181,179,216,210,215,208,282,285,489,487,804,791,890,858]} 1. d4 {[%emt 0:00:04]} e6 {[%emt 0:00:39]} 2. c4 {[%emt 0:00:18]} Nf6 {[%emt 0:00:23]} 3. Nf3 {[%emt 0:00:26]} b6 {[%emt 0:00:09]} 4. g3 {[%emt 0:00:24]} Ba6 {[%emt 0:01:03]} 5. Qa4 {[%emt 0:00:42]} Be7 {[%emt 0:03:32] CPLX 2.2 9 (Ba6-b7) (=9)} 6. Nc3 {[%emt 0:01:09] CPLX 2.2 10 (Bf1-g2) (=10). E15: Queen's Indian: 4 g3 sidelines, 4 g3 Ba6 and 4 g3 Bb7 early deviations.} O-O {[%emt 0:01:33] CPLX 2.2 15 (Ba6-b7) (=12)} 7. Bg2 {[%emt 0:07:36] CPLX 2.1 27 (e2-e4) (=19)} d5 {[%emt 0:10:33] CPLX 2.2 28 (Ba6-b7) (=17)} 8. cxd5 {[%emt 0:00:16] CPLX 2.4. White is slightly better.} exd5 {[%emt 0:00:15] RECAPT 2 (Nf6xd5) (=14)} 9. O-O {[%emt 0:02:06] [#] CPLX 2.3} Qd7 $146 {[%emt 0:05:50] CPLX 2.2 22 (Ba6-b7) (=15)} ({Predecessor:} 9... Bb7 10. Bf4 Nh5 11. Be3 Qe8 12. Qxe8 Rxe8 13. Ne5 c6 14. Rac1 Bd6 15. Nd3 Na6 {1-0 (59) Zakharchenko,A (2179)-Yakimenko,A (2199) Sunny Beach 2013}) 10. Qc2 {[%emt 0:03:24] CPLX 2.5 39 (Qa4xd7) (=15)} c6 {[%emt 0:11:09] CPLX 2.3 49 (Ba6-b7) (=21)} (10... Bb7 $14) 11. Re1 $16 {[%emt 0:08:22] BESTDEEP} Bb7 {[%emt 0:07:19] CPLX 2.2 5 (Be7-b4) (=19)} 12. Bg5 {[%emt 0:06:42] CPLX 2.2 10 (Nf3-e5) (=12)} Na6 {[%emt 0:06:09] CPLX 2.4} 13. Ne5 {[%emt 0:04:32] CPLX 2.4} Qd8 {[%emt 0:13:32] BESTDEEP} 14. Rad1 {[%emt 0:02:13] CPLX 3.0 22 (e2-e4) (=12)} Rc8 {[%emt 0:01:30] CPLX 3.0 58 (h7-h6) (=19)} (14... h6 $14 15. Bf4 Re8) 15. e4 {[%emt 0:02:37] White is much more active. BESTDEEP} h6 {[%emt 0:04:10] CPLX 2.7 0 (Nf6xe4) (=17)} 16. Bxf6 {[%emt 0:00:37] CPLX 3.0} Bxf6 {[%emt 0:00:15] RECAPT} 17. exd5 {[%emt 0:00:55] CPLX 2.5} cxd5 {[%emt 0:03:07] RECAPT} 18. Qf5 {[%emt 0:00:59] CPLX 3.1 48 (Qc2-a4) (=12)} (18. Qa4 $142 $1) 18... Rc7 {[%emt 0:02:44] [#] CPLX 3.4 85 (Bf6xe5) (=20)} (18... Bxe5 $16 {was called for.} 19. Rxe5 Nc7) 19. Ng4 $1 $18 {[%emt 0:01:33][%cal Rc3d5] Pair of Knights! CPLX 3.3} Bg5 {[%emt 0:08:11] [#] BESTDEEP} 20. h4 $1 {[%emt 0:04:26] BESTDEEP} ({Much less strong is} 20. Bxd5 $6 Bc8 21. Qf3 Rxc3 22. bxc3 Bxg4 23. Bxf7+ Rxf7 $14) 20... Bc8 {[%emt 0:00:34] CPLX 3.8 37 (Qd8-c8) (=19)} 21. Qf3 {[%emt 0:00:06] EASY} Bxg4 {[%emt 0:00:35] CPLX 3.2 5 (Rc7xc3) (=19)} 22. Qxg4 {[%emt 0:00:04] RECAPT} Bf6 {[%emt 0:01:56] CPLX 2.7 74 (Rc7xc3) (=22)} 23. Nxd5 {[%emt 0:00:25] EASY} Rc4 $2 {[%emt 0:03:18] CPLX 3.2 204 (Rc7-c6) (=31)} (23... Rc6 24. Ne7+ Bxe7) 24. Qf5 {[%emt 0:03:30] Hoping for Be4. BESTDEEP. White is clearly winning.} Bxd4 {[%emt 0:07:14] EVAL 317 (Rc4-c6) (=46)} (24... Rc6 $142 25. h5 Rd6) 25. b3 {[%emt 0:00:20] EVAL} g6 {[%emt 0:01:22] EVAL 99 (Bd4xf2) (=48)} 26. Qf4 {[%emt 0:00:32] Weighted Error Value: White=0.09 (flawless) /Black=0.42} ({Not} 26. bxc4 gxf5 27. Rxd4 Kh8 $14) 1-0

[Event "26th Hit Open-A 2022"]
[Site "Nova Gorica"]
[Date "2022.09.20"]
[Round "7.22"]
[White "Mostbauer, Florian"]
[Black "Teo, Hong Ming"]
[Result "1-0"]
[ECO "D33"]
[WhiteElo "2295"]
[BlackElo "2013"]
[Annotator "TA"]
[PlyCount "107"]
[EventDate "2022.09.16"]
[EventType "swiss"]
[EventCountry "SLO"]
[SourceTitle "playchess.com"]
[Source "ChessBase"]
[SourceQuality "1"]
[TimeControl "5400+30"]

{[%evp 16,107,31,30,38,24,29,21,11,0,0,-7,0,9,8,2,7,2,11,12,9,8,64,60,62,75,72,70,70,70,61,71,100,48,35,35,31,29,225,216,331,168,185,176,178,175,195,176,199,211,218,193,214,226,220,165,164,163,167,143,182,183,183,137,137,127,127,127,123,92,92,92,148,107,120,114,173,169,166,166,259,241,236,229,263,263,312,312,464,421,563,537,708,712]} 1. Nf3 {[%emt 0:00:03]} d5 {[%emt 0:01:05]} 2. d4 {[%emt 0:00:18]} c5 {[%emt 0:00:20]} 3. c4 {[%emt 0:00:25]} e6 {[%emt 0:00:09]} 4. cxd5 {[%emt 0:00:57]} exd5 {[%emt 0:00:04]} 5. Nc3 {[%emt 0:00:14]} Nc6 {[%emt 0:01:08]} 6. g3 {[%emt 0:04:55]} Nf6 {[%emt 0:00:38]} 7. Bg2 {[%emt 0:00:11]} cxd4 {[%emt 0:00:13] The modern move.} 8. Nxd4 {[%emt 0:00:37]} Bc5 {[%emt 0:00:10]} 9. Nb3 {[%emt 0:05:31][%csl LRc5,LRd5]} Bb6 {[%emt 0:00:04] D33: Tarrasch Defence: 6 g3 sidelines.} 10. Nxd5 {[%emt 0:14:10] Bg5 is the strong threat.} Be6 {[%emt 0:00:09][%cal Rf6d5]} 11. e4 {[%emt 0:11:38]} Bg4 $1 {[%emt 0:01:26] The position is equal.} 12. Qd2 {[%emt 0:10:39]} Nxd5 {[%emt 0:18:33]} 13. Qxd5 {[%emt 0:01:27] [#]} Qf6 $146 {[%emt 0:11:10][%csl Gb6][%cal Rf6f2] [#]} ({Predecessor:} 13... Qxd5 14. exd5 Nb4 15. O-O Nc2 16. Rb1 Be2 17. Bf4 Bxf1 18. Rxf1 O-O 19. d6 Rad8 20. Bxb7 {1-0 (42) Getman,T (2148)-Kovalevskaya,E (2364) Obninsk 2022}) 14. O-O {[%emt 0:02:00][%cal Oe4e5]} Be2 {[%emt 0:22:35]} 15. Bg5 {[%emt 0:11:57]} Qxb2 {[%emt 0:00:38]} 16. Rfb1 {[%emt 0:02:06] The board is on fire.} Qa3 {[%emt 0:06:49]} 17. Re1 $36 {[%emt 0:04:09][%mdl 2048] White fights for an advantage.} Bg4 {[%emt 0:02:18]} 18. Be3 {[%emt 0:03:57]} Be6 {[%emt 0:05:21]} (18... Bxe3 $11 19. Rxe3 O-O) 19. Bc5 $14 {[%emt 0:01:11]} Qb2 {[%emt 0:03:52]} 20. Qg5 {[%emt 0:04:52]} Qe5 {[%emt 0:05:38]} 21. Qxe5 {[%emt 0:06:19]} Nxe5 {[%emt 0:00:07]} 22. Bxb6 {[%emt 0:00:31]} axb6 {[%emt 0:00:11]} 23. Nd4 {[%emt 0:00:08]} Ke7 {[%emt 0:03:55]} 24. Reb1 {[%emt 0:02:36]} (24. Nf5+ $16 Kf6 25. f4) 24... Nd7 {[%emt 0:03:21]} 25. a4 {[%emt 0:00:23]} Rhc8 {[%emt 0:01:22]} 26. Bf1 {[%emt 0:02:04]} Bc4 $2 {[%emt 0:05:56] [#]} (26... Rc3 $11 {and Black is okay.}) 27. Nf5+ $1 $18 {[%emt 0:00:23]} Ke6 {[%emt 0:00:12]} (27... Kf8 {is a better defense.} 28. Nd6 Bxf1) 28. Nxg7+ {[%emt 0:01:14]} (28. Rd1 $142 Bxf1 29. Rd6+ (29. Rxf1 g6 $11) (29. Kxf1 Nc5 $16) (29. Nxg7+ Ke7 $16) 29... Ke5 30. Re1 (30. Kxf1 Nc5 $16)) 28... Kf6 {[%emt 0:01:16]} 29. Nh5+ {[%emt 0:00:24]} Ke7 {[%emt 0:00:40]} 30. Nf4 {[%emt 0:02:07]} Bxf1 {[%emt 0:00:42]} 31. Kxf1 {[%emt 0:00:17]} Rc4 {[%emt 0:00:01]} 32. Nd5+ {[%emt 0:00:19]} Kf8 {[%emt 0:00:07]} 33. Rxb6 {[%emt 0:03:07]} ({But not} 33. Nxb6 $6 Nxb6 34. Rxb6 Rxe4 $16) 33... Rxe4 {[%emt 0:01:43]} 34. Rxb7 {[%emt 0:01:40]} Nc5 {[%emt 0:00:09]} 35. Rc7 {[%emt 0:02:51]} Rexa4 {[%emt 0:01:44]} 36. Rxa4 {[%emt 0:01:08]} Nxa4 {[%emt 0:00:03][%mdl 4096] Endgame KRN-KRN} 37. h4 {[%emt 0:01:21]} Ra5 {[%emt 0:01:19]} 38. Nf6 {[%emt 0:00:06]} h6 {[%emt 0:01:21]} 39. Rc8+ {[%emt 0:00:33]} ({Better is} 39. g4 $18) 39... Kg7 $16 {[%emt 0:00:12]} 40. Ne8+ {[%emt 0:00:13]} Kf8 {[%emt 0:01:52]} 41. Nd6+ {[%emt 0:00:37]} Ke7 {[%emt 0:00:22]} 42. Ne4 {[%emt 0:00:30] White is more active.} f5 {[%emt 0:01:36]} 43. Nd2 {[%emt 0:00:45]} Rd5 {[%emt 0:00:12]} ({Black should play} 43... Nc5) 44. Ke2 {[%emt 0:00:38]} Kf7 {[%emt 0:00:45]} 45. Rc6 {[%emt 0:00:38]} Re5+ {[%emt 0:00:34]} (45... Kg7 $16 {was called for.} 46. h5 Rc5 47. Rg6+ Kh7) 46. Kf3 $18 {[%emt 0:00:15]} Kg7 {[%emt 0:00:46]} 47. Nf1 {[%emt 0:00:55] Strongly threatening Kf4.} Nb2 {[%emt 0:00:17]} (47... Rc5 $142 48. Rd6 Nb2) 48. Rc3 {[%emt 0:00:53]} Na4 {[%emt 0:00:25]} 49. Rc7+ {[%emt 0:00:00]} Kg6 {[%emt 0:00:12]} 50. Rc6+ {[%emt 0:00:00]} Kg7 {[%emt 0:01:16]} 51. Kf4 {[%emt 0:00:54]} Re4+ {[%emt 0:00:24]} (51... Re2 $142 52. f3 Nb2 53. Kxf5 Re7) 52. Kxf5 {[%emt 0:00:22] White is clearly winning.} Re1 {[%emt 0:00:06]} 53. Rc7+ {[%emt 0:00:15]} Kg8 {[%emt 0:00:18]} 54. Ne3 {[%emt 0:00:14] Weighted Error Value: White=0.12 (very precise) /Black=0.28 (precise)} 1-0